fUSD/lending_fUSD_20251223
["ID","MTS","AMOUNT","RATE_DAILY","PERIOD"]
[399570592,1766506241111,-200.0,0.00016863,2]
[399570593,1766506241122,-200.0,0.00016864,2]
[399570594,1766506241132,-2000.0,0.00016864,2]
[399570595,1766506241142,-500.0,0.00016864,2]
[399570596,1766506241152,-200.0,0.00016864,2]
[399570597,1766506241163,-200.0,0.00016864,2]
[399570598,1766506241173,-1000.0,0.00016878,2]
[399570599,1766506241183,-1500.0,0.00016878,2]
[399570600,1766506241192,-1000.0,0.000169,2]
[399570601,1766506241202,-12618.85047922,0.000169,2]
[399570602,1766506241211,-499.99,0.00016922,2]
[399570603,1766506241222,-208.0,0.00016933,2]
[399570604,1766506241232,-2506.9582002,0.00016986,2]
[399570605,1766506241241,-42630.12,0.00016986,2]
[399570606,1766506241251,-500.0,0.00016998,2]
[399570607,1766506241262,-500.0,0.00016999,2]
[399570608,1766506241272,-500.0,0.00016999,2]
[399570609,1766506241282,-500.0,0.00016999,2]
[399570610,1766506241292,-500.0,0.00016999,2]
[399570611,1766506241303,-500.0,0.00016999,2]
[399570612,1766506241314,-500.0,0.00016999,2]
[399570613,1766506241327,-500.0,0.00016999,2]
[399570614,1766506241338,-500.0,0.00016999,2]
[399570615,1766506241348,-500.0,0.00016999,2]
[399570616,1766506241358,-500.0,0.00016999,2]
[399570617,1766506241368,-500.0,0.00016999,2]
[399570618,1766506241378,-180.67800734,0.00016999,2]
[399570619,1766506241389,-300.0,0.00016999,2]
[399570620,1766506241400,-1090.24693266,0.00016999,5]
[399570621,1766506241410,-1090.24693266,0.00016999,5]
[399570622,1766506241420,-1090.24693266,0.00016999,5]
[399570623,1766506241430,-1090.24693266,0.00016999,5]
[399570624,1766506241441,-1090.24693267,0.00016999,5]
[399570625,1766506241451,-300.0,0.00016999,2]
[399570626,1766506241461,-247.7695039,0.00016999,2]
[399570627,1766506241471,-300.0,0.00016999,2]
[399570628,1766506241481,-300.0,0.00016999,2]
[399570629,1766506241491,-300.0,0.00016999,2]
[399570630,1766506241501,-300.0,0.00016999,2]
[399570631,1766506241511,-500.0,0.00016999,2]
[399570632,1766506241521,-280.59512625,0.00016999,2]
[399570633,1766506241531,-192.6209221,0.00016999,2]
[399570634,1766506241541,-168.29249732,0.00016999,2]
[399570635,1766506241551,-5331.0,0.00017,2]
[399570636,1766506241561,-3333524.38995697,0.00017,2]
[399570637,1766506241575,-1753.46575911,0.00017,2]
[399570638,1766506241587,-566.1525905,0.00017,2]
[399570640,1766506243148,-460.71535664,0.00015582,2]
[399570641,1766506243160,-267.470874,0.00015582,2]
[399570642,1766506243180,-5803.81376936,0.00015582,2]
[399570643,1766506243190,-151.0,0.00015682,2]
[399570644,1766506243200,-653.26701381,0.00016567,2]
[399570645,1766506243210,-453004.06829053,0.00017,2]
[399570646,1766506243221,-33400.5034807,0.00017,2]
[399570647,1766506243233,-2630.64669746,0.00017,2]
[399570648,1766506243256,-1612.92171078,0.00017,2]
[399570652,1766506245833,-3150.7858863,0.000169,2]
[399570653,1766506245843,-360.41738813,0.000169,2]
[399570654,1766506245995,-292.84962568,0.000169,2]
[399570655,1766506246005,-2774.74801932,0.00017,2]
[399570656,1766506246049,-401.38999857,0.00017,2]
[399570663,1766507167695,-172.16,0.0001097,2]
[399570664,1766507167719,-273.52029713,0.00011,2]
[399570665,1766507169494,-302.32144684,0.00011,2]
[399570666,1766507171161,-386.18963,0.00011,2]
[399570667,1766507174408,-295.91814767,0.00011,2]
[399570668,1766507176845,1572.25678297,0.000209,30]
[399570669,1766507177075,-221.90119514,0.00011,2]
[399570671,1766507183379,-251.1868518,0.00011,2]
[399570672,1766507184899,-189.02492322,0.00011,2]
[399570673,1766507186932,-344.67662293,0.00011,2]
[399570674,1766507197701,718.85809917,0.0002,30]
[399570678,1766507373478,999.0,0.00013397,3]
[399570679,1766507391440,-305.98935372,0.00011,2]
[399570680,1766507397131,-241.14646199,0.00011,2]
[399570681,1766507399594,-353.94830561,0.00011,2]
[399570682,1766507401204,-362.62852561,0.00011,2]
[399570683,1766507405989,167.0,0.00019978,120]
[399570684,1766507407328,167.0,0.00020977,120]
[399570718,1766507432432,-334.80494252,0.00011,2]
[399570719,1766507432443,-195.0,0.00011226,2]
[399570720,1766507432453,-568.05286395,0.00011834,2]
[399570721,1766507432462,-195.0,0.000121,2]
[399570722,1766507432472,-152.52573828,0.0001281,2]
[399570723,1766507432485,-415.52712566,0.0001281,2]
[399570724,1766507432495,-200.0,0.00012898,2]
[399570725,1766507432505,-200.05,0.00012898,2]
[399570726,1766507432516,-712.104928,0.0001353,2]
[399570727,1766507432525,-1200.0,0.00013598,2]
[399570728,1766507432535,-5693.15724426,0.00013599,2]
[399570729,1766507432545,-156.31473031,0.00013599,2]
[399570730,1766507432555,-187.54426873,0.00013599,2]
[399570731,1766507432564,-151.0,0.00013683,2]
[399570732,1766507432574,-300.0,0.00013685,2]
[399570733,1766507432584,-150.0,0.00013685,2]
[399570734,1766507432594,-153.924,0.00013686,2]
[399570735,1766507432604,-23471.98199969,0.00013686,2]
[399570736,1766507432620,-1765.86379233,0.00013686,2]
[399570737,1766507432631,-263.67768316,0.00013686,2]
[399570738,1766507432643,-200200.68334888,0.00013686,2]
[399570739,1766507432659,-64954.45983889,0.00013686,2]
[399570740,1766507432671,-1268.84931635,0.00013686,2]
[399570741,1766507432682,-78674.55967969,0.00013686,2]
[399570742,1766507432695,-51711.82365918,0.00013686,2]
[399570743,1766507432710,-547.04992529,0.00013686,2]
[399570751,1766507437922,-500.0,0.00013685,2]
[399570752,1766507437933,-381.8698669,0.00013685,2]
[399570753,1766507437944,-292.1968427,0.00013685,2]
[399570754,1766507437957,-207.8031573,0.00013685,2]
[399570755,1766507437967,-500.0,0.00013685,2]
[399570756,1766507437978,-500.0,0.00013685,2]
[399570757,1766507437990,-107.88307875,0.00013685,2]
[399570758,1766507438002,-392.11692125,0.00013685,2]
[399570759,1766507438012,-500.0,0.00013685,2]
[399570760,1766507438028,-500.0,0.00013685,2]
[399570761,1766507438039,-577141.05075654,0.00013686,2]
[399570762,1766507438050,-542.72,0.00013699,2]
[399570763,1766507438060,-458.854,0.00013786,2]
[399570764,1766507438071,-3189.23363193,0.00013786,2]
[399570765,1766507438083,-568.05286394,0.00013786,2]
[399570766,1766507438094,-23014.0115,0.00013786,2]
[399570767,1766507438105,-1000.0,0.00013786,2]
[399570768,1766507438115,-2500.0,0.00013786,2]
[399570769,1766507438126,-151.0,0.00013878,2]
[399570770,1766507438137,-151.0,0.00013878,2]
[399570771,1766507438148,-151.0,0.00013878,2]
[399570772,1766507438161,-151.0,0.00013878,2]
[399570773,1766507438172,-151.0,0.00013878,2]
[399570774,1766507438183,-151.0,0.00013878,2]
[399570775,1766507438194,-151.0,0.00013878,2]
[399570776,1766507438206,-151.0,0.00013878,2]
[399570777,1766507438217,-151.0,0.00013878,2]
[399570778,1766507438229,-151.0,0.00013878,2]
[399570779,1766507438239,-500.0,0.00013885,2]
[399570780,1766507438250,-500.0,0.00013885,2]
[399570781,1766507438260,-500.0,0.00013885,2]
[399570782,1766507438271,-500.0,0.00013885,2]
[399570783,1766507438282,-500.0,0.00013885,2]
[399570784,1766507438293,-500.0,0.00013885,2]
[399570786,1766507438303,-500.0,0.00013885,2]
[399570789,1766507438313,-757.22,0.00013885,2]
[399570790,1766507438324,-757.22,0.00013885,2]
[399570794,1766507438334,-757.22,0.00013885,2]
[399570795,1766507438345,-757.22,0.00013885,2]
[399570797,1766507438355,-600.0,0.00013886,2]
[399570798,1766507438366,-5693.15724425,0.00013966,2]
[399570799,1766507438377,-500.0,0.00013985,2]
[399570800,1766507438393,-569.22562456,0.00013985,2]
[399570801,1766507438403,-156.31473028,0.00014071,2]
[399570802,1766507438414,-3189.2336319,0.00014132,2]
[399570803,1766507438425,-5693.15724425,0.00014333,2]
[399570804,1766507438435,-600.0,0.00014434,2]
[399570805,1766507438446,-3189.2336319,0.00014478,2]
[399570806,1766507438457,-156.31473028,0.00014542,2]
[399570807,1766507438468,-5693.15724425,0.00014699,2]
[399570808,1766507438478,-187.0,0.00014807,2]
[399570809,1766507438489,-3189.2336319,0.00014824,2]
[399570810,1766507438500,-434.0,0.00014958,2]
[399570811,1766507438511,-600.0,0.00014982,2]
[399570812,1766507438522,-156.31473028,0.00015014,2]
[399570813,1766507438533,-5693.15724425,0.00015066,2]
[399570814,1766507438543,-3189.2336319,0.0001517,2]
[399570815,1766507438555,-1000.0,0.00015366,2]
[399570816,1766507438566,-1669.416,0.00015392,2]
[399570817,1766507438576,-4806.0,0.00015392,2]
[399570818,1766507438586,-1325.885,0.00015392,2]
[399570819,1766507438597,-5693.15724425,0.00015433,2]
[399570820,1766507438608,-156.31473028,0.00015485,2]
[399570821,1766507438619,-3189.2336319,0.00015516,2]
[399570822,1766507438630,-600.0,0.0001553,2]
[399570823,1766507438641,-167.07,0.00015651,2]
[399570824,1766507438651,-500.0,0.00015783,2]
[399570825,1766507438665,-500.0,0.00015783,2]
[399570826,1766507438676,-5693.15724425,0.000158,2]
[399570827,1766507438687,-3189.2336319,0.00015862,2]
[399570828,1766507438699,-156.31473028,0.00015957,2]
[399570829,1766507438709,-1263.0,0.00015992,2]
[399570830,1766507438720,-921.291,0.00015992,2]
[399570831,1766507438740,-71496.58351836,0.00016,4]
[399570832,1766507438772,-1007.96906456,0.00016,4]
[399570833,1766507438795,-600.0,0.00016078,2]
[399570834,1766507438821,-602.882889,0.00016139,2]
[399570835,1766507438841,-322.6107,0.00016149,2]
[399570836,1766507438862,-574.12855637,0.00016149,2]
[399570837,1766507438886,-1108.0,0.00016149,2]
[399570838,1766507438915,-5693.15724425,0.00016166,2]
[399570839,1766507438940,-3189.2336319,0.00016208,2]
[399570840,1766507438963,-1000.0,0.00016331,2]
[399570841,1766507438993,-500.0,0.00016438,2]
[399570842,1766507439022,-500.0,0.00016438,2]
[399570843,1766507439040,-500.0,0.00016438,2]
[399570844,1766507439064,-500.0,0.00016438,2]
[399570845,1766507439079,-500.0,0.00016438,2]
[399570846,1766507439104,-523.49568721,0.00016438,2]
[399570847,1766507439120,-1219.85,0.00016438,2]
[399570848,1766507439162,-2439.43,0.00016438,2]
[399570849,1766507439186,-1219.85,0.00016438,2]
[399570850,1766507439212,-2439.7,0.00016438,2]
[399570851,1766507439237,-167.07,0.00016512,2]
[399570852,1766507439263,-5693.15724425,0.00016533,2]
[399570853,1766507439286,-1090.24693266,0.00016553,5]
[399570854,1766507439308,-3189.2336319,0.00016554,2]
[399570855,1766507439329,-1000.0,0.00016555,2]
[399570856,1766507439349,-1000.0,0.00016555,2]
[399570857,1766507439369,-1000.0,0.00016555,2]
[399570858,1766507439388,-1000.0,0.00016555,2]
[399570859,1766507439408,-1000.0,0.00016555,2]
[399570860,1766507439427,-551.455,0.00016555,2]
[399570861,1766507439447,-1000.0,0.00016555,2]
[399570862,1766507439466,-1000.0,0.00016555,2]
[399570863,1766507439485,-1000.0,0.00016555,2]
[399570864,1766507439504,-600.0,0.00016626,2]
[399570865,1766507439524,-2599.39727584,0.0001666,2]
[399570866,1766507439542,-3493.0,0.00016689,2]
[399570867,1766507439572,-595.37131296,0.00016697,2]
[399570868,1766507439603,-5000.0,0.00016712,2]
[399570869,1766507439627,-2000.0,0.00016791,2]
[399570870,1766507439650,-2000.0,0.00016791,2]
[399570871,1766507439673,-1000.0,0.00016791,2]
[399570872,1766507439695,-1000.0,0.00016791,2]
[399570873,1766507439716,-213.0,0.00016793,2]
[399570874,1766507439738,-213.0,0.00016834,2]
[399570875,1766507439758,-200.0,0.00016863,2]
[399570876,1766507439778,-200.0,0.00016864,2]
[399570877,1766507439798,-2000.0,0.00016864,2]
[399570878,1766507439816,-500.0,0.00016864,2]
[399570879,1766507439836,-200.0,0.00016864,2]
[399570880,1766507439854,-200.0,0.00016864,2]
[399570881,1766507439873,-1500.0,0.00016878,2]
[399570883,1766507439903,-844.83880971,0.000169,2]
[399570885,1766507439938,-650.0,0.000169,2]
[399570886,1766507439972,-1694.39482219,0.000169,2]
[399570887,1766507439997,-12618.85047922,0.000169,2]
[399570888,1766507440021,-1406.60977323,0.000169,2]
[399570889,1766507440045,-1315.31046235,0.000169,2]
[399570890,1766507440070,-4038.49465,0.000169,2]
[399570891,1766507440097,-339.3521319,0.000169,2]
[399570892,1766507440118,-240.90664965,0.000169,2]
[399570893,1766507440142,-387.4725984,0.000169,2]
[399570894,1766507440166,-3027.18735771,0.000169,2]
[399570895,1766507440215,-1465.43339424,0.000169,2]
[399570896,1766507440244,-213.0,0.0001695,2]
[399570897,1766507440270,-297.0,0.00016983,2]
[399570898,1766507440295,-2506.9582002,0.00016986,2]
[399570899,1766507440316,-602.882889,0.0001699,2]
[399570900,1766507440338,-602.882889,0.0001699,2]
[399570901,1766507440359,-2924.7909485,0.00016994,2]
[399570902,1766507440379,-3709.0439524,0.00016997,2]
[399570903,1766507440399,-105.29211618,0.00016999,2]
[399570904,1766507440424,-194.70788382,0.00016999,2]
[399570905,1766507440444,-1090.24693266,0.00016999,5]
[399570906,1766507440464,-1090.24693266,0.00016999,5]
[399570907,1766507440483,-1090.24693266,0.00016999,5]
[399570908,1766507440501,-1090.24693267,0.00016999,5]
[399570909,1766507440519,-300.0,0.00016999,2]
[399570910,1766507440537,-500.0,0.00016999,2]
[399570911,1766507440554,-500.0,0.00016999,2]
[399570912,1766507440572,-500.0,0.00016999,2]
[399570913,1766507440590,-500.0,0.00016999,2]
[399570914,1766507440608,-500.0,0.00016999,2]
[399570915,1766507440626,-500.0,0.00016999,2]
[399570916,1766507440644,-447.20626082,0.00016999,2]
[399570917,1766507440666,-52.79373918,0.00016999,2]
[399570918,1766507440683,-436.44015277,0.00016999,2]
[399570919,1766507440705,-63.55984723,0.00016999,2]
[399570920,1766507440724,-500.0,0.00016999,2]
[399570921,1766507440742,-500.0,0.00016999,2]
[399570922,1766507440758,-500.0,0.00016999,2]
[399570923,1766507440775,-500.0,0.00016999,2]
[399570924,1766507440792,-500.0,0.00016999,2]
[399570925,1766507440810,-180.67800734,0.00016999,2]
[399570926,1766507440825,-300.0,0.00016999,2]
[399570927,1766507440842,-300.0,0.00016999,2]
[399570928,1766507440859,-300.0,0.00016999,2]
[399570929,1766507440875,-757.22,0.00016999,2]
[399570930,1766507440892,-757.22,0.00016999,2]
[399570931,1766507440909,-757.22,0.00016999,2]
[399570932,1766507440927,-757.22,0.00016999,2]
[399570933,1766507440942,-757.22,0.00016999,2]
[399570934,1766507440960,-757.22,0.00016999,2]
[399570935,1766507440977,-757.22,0.00016999,2]
[399570936,1766507440995,-757.22,0.00016999,2]
[399570937,1766507441013,-757.22,0.00016999,2]
[399570938,1766507441032,-757.22,0.00016999,2]
[399570939,1766507441394,-757.22,0.00016999,2]
[399570940,1766507441448,-757.22,0.00016999,2]
[399570941,1766507441458,-757.22,0.00016999,2]
[399570942,1766507441468,-8.36784504,0.00016999,2]
[399570943,1766507441617,-266.56780002,0.000169,2]
[399570944,1766507441809,-1.7e-07,0.000169,2]
[399570945,1766507441822,-2385.63079451,0.000169,2]
[399570946,1766507441832,-748.85215496,0.00016999,2]
[399570947,1766507441842,-757.22,0.00016999,2]
[399570948,1766507441851,-757.22,0.00016999,2]
[399570949,1766507441862,-757.22,0.00016999,2]
[399570950,1766507441871,-757.22,0.00016999,2]
[399570951,1766507441881,-757.22,0.00016999,2]
[399570952,1766507441891,-757.28,0.00016999,2]
[399570953,1766507441902,-300.0,0.00016999,2]
[399570954,1766507441913,-500.0,0.00016999,2]
[399570955,1766507441924,-220.71125758,0.00016999,2]
[399570956,1766507441934,-290.98146076,0.00016999,2]
[399570957,1766507441943,-592.60338605,0.00016999,2]
[399570958,1766507441954,-2296791.66612136,0.00017,2]
[399570959,1766507441964,-1341299.18997279,0.00017,2]
[399570965,1766507443202,-880.0,0.00015392,2]
[399570969,1766507443271,-1550.0,0.00015392,2]
[399570971,1766507443280,-156.31473028,0.00016428,2]
[399570972,1766507443290,-797.20615221,0.00016952,2]
[399570973,1766507443300,-170149.19182284,0.00017,2]
[399570974,1766507443311,-523.31404155,0.00017,2]
[399570975,1766507443323,-586.34047955,0.00017,2]
[399570976,1766507443346,-457.10686771,0.00017,2]
[399570991,1766507445925,-151.0,0.0001647,2]
[399570993,1766507445935,-156.31473028,0.000169,2]
[399570995,1766507445945,-627.08604089,0.00017,2]
[399570996,1766507445957,-470.48219135,0.00017,2]
[399570997,1766507446185,-4892.23422473,0.00017,2]
[399570998,1766507446269,-794.30477733,0.00017,2]
[399571019,1766507650840,579.06,7.79e-05,2]
[399571020,1766507651057,579.06,8.2e-05,2]
[399571021,1766507651327,579.06,8.61e-05,2]
[399571022,1766507651585,579.06,9.02e-05,2]
[399571023,1766507651835,579.06,9.43e-05,2]
[399571024,1766507653138,579.06,9.84e-05,2]
[399571025,1766507656224,-491.73281372,0.0001025,2]
[399571026,1766507661235,-87.32718628,0.0001025,2]
[399571027,1766507661261,-121.1546136,0.0001066,2]
[399571028,1766507664108,-300.2647552,0.0001066,2]
[399571029,1766507672271,-155.51146646,0.0001066,2]
[399571030,1766507692039,-2.12916474,0.0001066,2]
[399571031,1766507692068,-174.52929301,0.0001107,2]
[399571036,1766507916454,-404.53070699,0.0001107,2]
[399571037,1766507916479,-7.97343562,0.00011275,2]
[399571038,1766507917928,-176.04083718,0.00011275,2]
[399571039,1766507948413,591.661533,7.945e-05,2]
[399571046,1766508006724,-65.9857272,0.00011275,2]
[399571047,1766508006748,-187.76251217,0.00011275,2]
[399571048,1766508008222,253.748239,7.945e-05,2]
[399571064,1766508399135,-167.0,0.00022827,120]
[399571065,1766508399196,-202.90189992,0.00023,117]
[399571066,1766508399250,-167.0,0.00023052,120]
[399571067,1766508399317,-167.0,0.00023969,120]
[399571068,1766508399375,-180.0,0.00024,120]
[399571069,1766508399435,-300.0,0.00025,120]
[399571070,1766508399491,-520.652829,0.00025732,120]
[399571071,1766508399546,-584.340373,0.00025732,120]
[399571072,1766508399607,-551.91357,0.00025732,120]
[399571073,1766508399657,-160.0,0.00026,120]
[399571074,1766508399709,-266.87,0.00026986,120]
[399571075,1766508399756,-2000.0,0.0002739,120]
[399571076,1766508399808,-720.52685767,0.00027397,120]
[399571077,1766508399865,-587.0,0.000274,120]
[399571078,1766508399915,-1959.97246142,0.00028,120]
[399571079,1766508399962,-1181.3972914,0.00028,120]
[399571080,1766508400002,-300.0,0.00028,120]
[399571081,1766508400044,-254.15256449,0.00028297,120]
[399571082,1766508400084,-160.0,0.00029,120]
[399571083,1766508400122,-403329.03312954,0.000295,120]
[399571084,1766508400161,-109956.37541006,0.000299,120]
[399571085,1766508400205,-1029.65829,0.0003,120]
[399571086,1766508400246,-9558.06584928,0.0003,120]
[399571087,1766508400287,-2099.0,0.0003,120]
[399571088,1766508400327,-300.0,0.0003,120]
[399571089,1766508400367,-1535.10564829,0.00031,120]
[399571090,1766508400407,-1000.0,0.000314,120]
[399571091,1766508400444,-208.51,0.00031507,120]
[399571092,1766508400481,-300.0,0.00032,120]
[399571093,1766508400524,-500.0,0.00032876,120]
[399571094,1766508400559,-500.0,0.00032876,120]
[399571095,1766508400595,-500.0,0.00032876,120]
[399571096,1766508400631,-500.0,0.00032876,120]
[399571097,1766508400666,-500.0,0.00032876,120]
[399571098,1766508400702,-500.0,0.00032876,120]
[399571099,1766508400737,-500.0,0.00032876,120]
[399571100,1766508400773,-150.0,0.00032876,120]
[399571101,1766508400813,-2243.93,0.00032876,120]
[399571102,1766508400963,-150.0,0.00033013,120]
[399571103,1766508401002,-150.0,0.0003315,120]
[399571104,1766508401041,-2000.0,0.00033232,120]
[399571105,1766508401076,-150.0,0.00033287,120]
[399571106,1766508401112,-1000.0,0.000333,120]
[399571107,1766508401148,-150.0,0.00033424,120]
[399571108,1766508401188,-194.24882064,0.00033561,120]
[399571109,1766508401233,-300.0,0.00034,120]
[399571110,1766508401277,-163.0,0.000345,90]
[399571111,1766508401318,-2000.0,0.00034732,120]
[399571112,1766508401361,-2243.93,0.00034794,120]
[399571113,1766508401717,-21857.25250712,0.00035,120]
[399571114,1766508401765,-203.0,0.00035068,120]
[399571115,1766508401808,-1000.0,0.000354,120]
[399571116,1766508401850,-208.51,0.00035445,120]
[399571117,1766508401891,-300.0,0.00036,120]
[399571118,1766508401931,-2089.002297,0.00036232,120]
[399571119,1766508401975,-2243.93,0.00036712,120]
[399571120,1766508402017,-164.52209007,0.00036986,73]
[399571121,1766508402062,-225.78397315,0.00037088,120]
[399571122,1766508402104,-219.18903301,0.00037088,120]
[399571123,1766508402143,-219.18903301,0.00037088,120]
[399571124,1766508402182,-174.68434077,0.000372,120]
[399571125,1766508402222,-174.68434074,0.000372,120]
[399571126,1766508402261,-174.68434074,0.000372,120]
[399571127,1766508402299,-174.68434074,0.000372,120]
[399571128,1766508402342,-1000.0,0.000374,120]
[399571129,1766508402380,-312.65497417,0.00038,120]
[399571130,1766508402419,-200.0,0.00038,120]
[399571131,1766508402455,-500.0,0.00038356,120]
[399571132,1766508402490,-500.0,0.00038356,120]
[399571133,1766508402524,-1360.38,0.00038356,120]
[399571134,1766508402558,-351.01617917,0.00038356,120]
[399571135,1766508402592,-300.0,0.00038356,120]
[399571136,1766508402627,-300.0,0.00038356,120]
[399571137,1766508402662,-300.0,0.00038356,120]
[399571138,1766508402696,-300.0,0.00038356,120]
[399571139,1766508402732,-300.0,0.00038356,120]
[399571140,1766508402771,-300.0,0.00038356,120]
[399571141,1766508402806,-300.0,0.00038356,120]
[399571142,1766508402846,-300.0,0.00038356,120]
[399571143,1766508402884,-300.0,0.00038356,120]
[399571144,1766508402921,-518.864248,0.00038356,120]
[399571145,1766508402957,-518.864248,0.00038356,120]
[399571146,1766508402995,-518.864248,0.00038356,120]
[399571147,1766508403034,-518.864248,0.00038356,120]
[399571148,1766508403072,-518.864248,0.00038356,120]
[399571149,1766508403110,-518.864248,0.00038356,120]
[399571150,1766508403148,-518.864248,0.00038356,120]
[399571151,1766508403186,-518.864248,0.00038356,120]
[399571152,1766508403225,-518.864248,0.00038356,120]
[399571153,1766508403264,-518.864248,0.00038356,120]
[399571154,1766508403303,-518.864248,0.00038356,120]
[399571155,1766508403341,-518.864248,0.00038356,120]
[399571156,1766508403379,-518.864248,0.00038356,120]
[399571157,1766508403417,-518.864248,0.00038356,120]
[399571158,1766508403455,-518.864248,0.00038356,120]
[399571159,1766508403493,-518.864248,0.00038356,120]
[399571160,1766508403529,-518.864248,0.00038356,120]
[399571161,1766508403565,-518.864248,0.00038356,120]
[399571162,1766508403601,-518.864248,0.00038356,120]
[399571163,1766508403636,-518.864246,0.00038356,120]
[399571164,1766508403674,-1360.38,0.00038383,120]
[399571165,1766508403712,-500.0,0.00038384,60]
[399571166,1766508403748,-500.0,0.00038384,60]
[399571167,1766508403785,-500.0,0.00038384,60]
[399571168,1766508403820,-500.0,0.00038384,60]
[399571169,1766508403857,-500.0,0.00038384,60]
[399571170,1766508403892,-500.0,0.00038384,60]
[399571171,1766508403928,-500.0,0.00038384,60]
[399571172,1766508403964,-500.0,0.00038384,60]
[399571173,1766508404001,-500.0,0.00038384,60]
[399571174,1766508404042,-513.76398576,0.00038384,60]
[399571175,1766508404078,-1360.38,0.0003841,120]
[399571176,1766508404115,-1360.38,0.00038438,120]
[399571177,1766508404151,-1360.38,0.00038465,120]
[399571178,1766508404187,-500.0,0.00038493,120]
[399571179,1766508404224,-500.0,0.00038493,120]
[399571180,1766508404261,-1360.38,0.00038493,120]
[399571181,1766508404298,-1360.38,0.0003852,120]
[399571182,1766508404336,-1360.38,0.00038547,120]
[399571183,1766508404374,-1360.38,0.00038575,120]
[399571184,1766508404413,-1360.38,0.00038602,120]
[399571185,1766508404452,-500.0,0.0003863,120]
[399571186,1766508404491,-1360.38,0.0003863,120]
[399571187,1766508404530,-2243.93,0.0003863,120]
[399571188,1766508404568,-1360.38,0.00038657,120]
[399571189,1766508404606,-1360.38,0.00038684,120]
[399571190,1766508404642,-500.0,0.000387,120]
[399571191,1766508404676,-500.0,0.000387,120]
[399571192,1766508404710,-500.0,0.000387,120]
[399571193,1766508404747,-500.0,0.000387,120]
[399571194,1766508404782,-1360.38,0.00038712,120]
[399571195,1766508404816,-1360.38,0.00038739,120]
[399571196,1766508404853,-500.0,0.00038767,120]
[399571197,1766508404890,-1360.38,0.00038767,120]
[399571198,1766508404928,-1360.38,0.00038794,120]
[399571199,1766508404967,-1324.73275438,0.000388,120]
[399571200,1766508405006,-1360.38,0.00038821,120]
[399571201,1766508405045,-1360.38,0.00038849,120]
[399571202,1766508405082,-1360.38,0.00038876,120]
[399571203,1766508405120,-500.0,0.00038904,120]
[399571204,1766508405158,-1360.38,0.00038904,120]
[399571205,1766508405196,-1360.38,0.00038931,120]
[399571206,1766508405235,-1360.38,0.00038958,120]
[399571207,1766508405490,-1083.440134,0.00038959,60]
[399571208,1766508405529,-1083.440134,0.00038959,60]
[399571209,1766508405567,-1083.440134,0.00038959,60]
[399571210,1766508405603,-1083.440134,0.00038959,60]
[399571211,1766508405639,-1083.440134,0.00038959,60]
[399571212,1766508405679,-1083.440134,0.00038959,60]
[399571213,1766508405719,-1083.440134,0.00038959,60]
[399571214,1766508405755,-1083.440134,0.00038959,60]
[399571215,1766508405791,-1083.440134,0.00038959,60]
[399571216,1766508405834,-1083.440134,0.00038959,60]
[399571217,1766508405875,-1083.440134,0.00038959,60]
[399571218,1766508405912,-1083.440134,0.00038959,60]
[399571219,1766508405955,-1083.440134,0.00038959,60]
[399571220,1766508405994,-1083.440134,0.00038959,60]
[399571221,1766508406032,-1083.440134,0.00038959,60]
[399571222,1766508406069,-1083.440134,0.00038959,60]
[399571223,1766508406105,-1083.440134,0.00038959,60]
[399571224,1766508406141,-1083.440134,0.00038959,60]